[Event "Championnat du monde jeunes U10"]
[Date "2024.11.17"]
[White "Friscic, Jakov"]
[Black "Gusev, Daniil Den"]
[WhiteElo "1685"]
[BlackElo "1863"]
[Round "3.33"]
[Result "1/2-1/2"]
[TimeControl "5400+30"]

1. d4 {[%clk 1:30:58]} 1... Nf6 {[%clk 1:30:54]} 2. c4 {[%clk 1:31:22]} 2... g6
{[%clk 1:31:03]} 3. Nc3 {[%clk 1:31:45]} 3... Bg7 {[%clk 1:31:28]} 4. e4 {[%clk
1:32:08]} 4... d6 {[%clk 1:31:31]} 5. f3 {[%clk 1:32:31]} 5... O-O {[%clk
1:31:40]} 6. Be3 {[%clk 1:32:57]} 6... e5 {[%clk 1:31:18]} 7. d5 {[%clk
1:33:22]} 7... c6 {[%clk 1:31:10]} 8. Qd2 {[%clk 1:33:25]} 8... cxd5 {[%clk
1:29:35]} 9. cxd5 {[%clk 1:33:42]} 9... Nh5 {[%clk 1:29:01]} 10. Bd3 {[%clk
1:33:14]} 10... Nf4 {[%clk 1:28:29]} 11. Bf1 {[%clk 1:31:52]} 11... f5 {[%clk
1:26:33]} 12. Nge2 {[%clk 1:32:01]} 12... Nd7 {[%clk 1:17:47]} 13. Rc1 {[%clk
1:29:04]} 13... a6 {[%clk 1:15:46]} 14. g3 {[%clk 1:21:24]} 14... Nxe2 {[%clk
1:11:19]} 15. Bxe2 {[%clk 1:21:47]} 15... f4 {[%clk 1:09:14]} 16. Bf2 {[%clk
1:11:02]} 16... Bf6 {[%clk 1:04:08]} 17. g4 {[%clk 1:05:59]} 17... Bh4 {[%clk
1:04:31]} 18. Bd3 {[%clk 1:06:08]} 18... Nc5 {[%clk 0:55:58]} 19. Bf1 {[%clk
1:02:22]} 19... Bd7 {[%clk 0:53:59]} 20. Bxh4 {[%clk 1:01:02]} 20... Qxh4+
{[%clk 0:54:22]} 21. Qf2 {[%clk 1:01:15]} 21... Qxf2+ {[%clk 0:53:22]} 22. Kxf2
{[%clk 1:01:43]} 22... Rfc8 {[%clk 0:53:36]} 23. Be2 {[%clk 0:58:36]} 23... Na4
{[%clk 0:49:22]} 24. Nxa4 {[%clk 0:57:32]} 24... Bxa4 {[%clk 0:49:40]} 25. b3
{[%clk 0:57:36]} 25... Bd7 {[%clk 0:49:44]} 26. Bd3 {[%clk 0:56:15]} 26... Kf7
{[%clk 0:47:03]} 27. Ke2 {[%clk 0:55:37]} 27... h6 {[%clk 0:44:09]} 28. h4
{[%clk 0:55:28]} 28... Ke7 {[%clk 0:44:27]} 29. Kd2 {[%clk 0:55:50]} 29... b5
{[%clk 0:42:50]} 30. Rxc8 {[%clk 0:54:00]} 30... Rxc8 {[%clk 0:40:12]} 31. Rc1
{[%clk 0:54:19]} 31... Rxc1 {[%clk 0:40:31]} 32. Kxc1 {[%clk 0:54:48]} 32... a5
{[%clk 0:40:55]} 33. b4 {[%clk 0:54:12]} 33... axb4 {[%clk 0:38:48]} 34. Kb2
{[%clk 0:51:26]} 34... Kd8 {[%clk 0:37:21]} 35. Kb3 {[%clk 0:51:43]} 35... Kc7
{[%clk 0:37:23]} 36. Kxb4 {[%clk 0:52:03]} 36... Kb6 {[%clk 0:37:47]} 37. Be2
{[%clk 0:52:19]} 37... h5 {[%clk 0:33:27]} 38. g5 {[%clk 0:52:38]} 38... Be8
{[%clk 0:31:49]} 39. Bd3 {[%clk 0:52:28]} 39... Bd7 {[%clk 0:29:40]} 40. Bf1
{[%clk 0:52:42]} 40... Be8 {[%clk 0:30:07]} 41. Bh3 {[%clk 0:53:02]} 41... Ka6
{[%clk 0:30:25]} 42. Bc8+ {[%clk 0:52:55]} 42... Kb6 {[%clk 0:30:48]} 43. a3
{[%clk 0:51:05]} 43... Kc7 {[%clk 0:31:12]} 1/2-1/2

[Variant "Standard"]
[Site "Europe Echecs"]

[Event "Championnat du monde jeunes U10"]
[Date "2024.11.17"]
[White "Akramov, Khasan"]
[Black "Yao, Lucas Mason Pin Qian"]
[WhiteElo "1835"]
[BlackElo "1687"]
[Round "3.34"]
[Result "1-0"]
[TimeControl "5400+30"]

1. c4 {[%clk 1:30:57]} 1... e6 {[%clk 1:30:52]} 2. g3 {[%clk 1:31:21]} 2... d5
{[%clk 1:31:15]} 3. d4 {[%clk 1:31:46]} 3... Nf6 {[%clk 1:31:23]} 4. Bg2 {[%clk
1:32:10]} 4... Be7 {[%clk 1:31:34]} 5. Nf3 {[%clk 1:32:34]} 5... O-O {[%clk
1:31:53]} 6. O-O {[%clk 1:32:58]} 6... dxc4 {[%clk 1:32:07]} 7. Qc2 {[%clk
1:32:33]} 7... b5 {[%clk 1:32:26]} 8. a4 {[%clk 1:32:34]} 8... b4 {[%clk
1:32:25]} 9. Nfd2 {[%clk 1:32:32]} 9... Nd5 {[%clk 1:32:40]} 10. Nxc4 {[%clk
1:32:03]} 10... c5 {[%clk 1:32:56]} 11. e4 {[%clk 1:24:29]} 11... Nb6 {[%clk
1:31:58]} 12. Nxb6 {[%clk 1:24:05]} 12... axb6 {[%clk 1:31:22]} 13. d5 {[%clk
1:22:09]} 13... Ra7 {[%clk 1:28:43]} 14. Bf4 {[%clk 1:21:21]} 14... Ba6 {[%clk
1:24:22]} 15. Rd1 {[%clk 1:21:34]} 15... exd5 {[%clk 1:22:59]} 16. exd5 {[%clk
1:21:57]} 16... Bd6 {[%clk 1:19:58]} 17. Bxd6 {[%clk 1:22:06]} 17... Qxd6 {[%clk
1:20:07]} 18. Nd2 {[%clk 1:21:51]} 18... Rd8 {[%clk 1:14:59]} 19. Ne4 {[%clk
1:20:51]} 19... Qg6 {[%clk 1:14:12]} 20. a5 {[%clk 1:09:47]} 20... Bb7 {[%clk
1:08:34]} 21. Qb3 {[%clk 1:02:41]} 21... bxa5 {[%clk 1:00:52]} 22. Nxc5 {[%clk
1:02:07]} 22... Qb6 {[%clk 0:59:34]} 23. Rac1 {[%clk 0:58:46]} 23... h6 {[%clk
0:53:38]} 24. Qa4 {[%clk 0:53:11]} 24... Bc8 {[%clk 0:47:53]} 25. Re1 {[%clk
0:45:55]} 25... Nd7 {[%clk 0:44:23]} 26. Nd3 {[%clk 0:30:09]} 26... Ba6 {[%clk
0:39:53]} 27. Nf4 {[%clk 0:29:07]} 27... Bb5 {[%clk 0:38:21]} 28. Qc2 {[%clk
0:24:32]} 28... Qd6 {[%clk 0:36:36]} 29. Qf5 {[%clk 0:22:57]} 29... a4 {[%clk
0:33:53]} 30. Be4 {[%clk 0:19:00]} 30... Nf6 {[%clk 0:32:05]} 31. Bb1 {[%clk
0:19:09]} 31... g6 {[%clk 0:30:27]} 32. Qh3 {[%clk 0:18:14]} 32... h5 {[%clk
0:30:04]} 33. Qh4 {[%clk 0:12:12]} 33... Ng4 {[%clk 0:26:39]} 34. Bxg6 {[%clk
0:11:46]} 34... fxg6 {[%clk 0:15:47]} 35. Re6 {[%clk 0:12:08]} 35... a3 {[%clk
0:13:24]} 36. bxa3 {[%clk 0:12:29]} 36... bxa3 {[%clk 0:13:06]} 37. Rxg6+ {[%clk
0:12:38]} 37... Qxg6 {[%clk 0:09:17]} 38. Nxg6 {[%clk 0:13:03]} 38... Re8 {[%clk
0:08:50]} 39. Qxh5 {[%clk 0:12:22]} 39... Nf6 {[%clk 0:09:09]} 40. Qg5 {[%clk
0:12:20]} 40... Kf7 {[%clk 0:08:16]} 41. Ne5+ {[%clk 0:12:30]} 41... Rxe5 {[%clk
0:08:37]} 42. Qxe5 {[%clk 0:12:54]} 42... a2 {[%clk 0:08:57]} 43. Rc7+ {[%clk
0:12:41]} 43... Rxc7 {[%clk 0:09:15]} 44. Qxc7+ {[%clk 0:13:05]} 44... Kf8
{[%clk 0:09:12]} 45. Qa7 {[%clk 0:13:26]} 45... Nxd5 {[%clk 0:09:30]} 46. Qxa2
{[%clk 0:13:48]} 46... Ne7 {[%clk 0:09:54]} 47. Qa8+ {[%clk 0:14:12]} 47... Be8
{[%clk 0:10:10]} 48. f4 {[%clk 0:14:34]} 48... Kf7 {[%clk 0:10:33]} 49. g4
{[%clk 0:14:57]} 49... Bc6 {[%clk 0:10:53]} 50. Qa7 {[%clk 0:14:25]} 50... Ke6
{[%clk 0:11:13]} 51. f5+ {[%clk 0:14:50]} 51... Kf6 {[%clk 0:11:32]} 52. g5+
{[%clk 0:15:16]} 52... Kxg5 {[%clk 0:11:44]} 53. Qxe7+ {[%clk 0:15:42]} 53...
Kxf5 {[%clk 0:12:04]} 54. Qc5+ {[%clk 0:16:09]} 54... Ke4 {[%clk 0:12:25]} 55.
Qxc6+ {[%clk 0:16:36]} 55... Ke5 {[%clk 0:12:49]} 56. h4 {[%clk 0:17:01]} 56...
Kd4 {[%clk 0:13:05]} 57. h5 {[%clk 0:17:29]} 57... Ke5 {[%clk 0:13:22]} 58. h6
{[%clk 0:17:56]} 58... Kd4 {[%clk 0:13:44]} 59. h7 {[%clk 0:18:20]} 59... Ke5
{[%clk 0:13:55]} 60. h8=Q+ {[%clk 0:18:46]} 60... Kf4 {[%clk 0:14:11]} 61. Qh4+
{[%clk 0:18:22]} 61... Ke3 {[%clk 0:13:45]} 62. Qc2 {[%clk 0:18:44]} 62... Kf3
{[%clk 0:14:08]} 63. Qce4# {[%clk 0:19:12]} 1-0

[Variant "Standard"]
[Site "Europe Echecs"]

[Event "Championnat du monde jeunes U10"]
[Date "2024.11.17"]
[White "Guirado Lara, Pablo"]
[Black "Makhsatuly, Rakhim"]
[WhiteElo "1832"]
[BlackElo "1683"]
[Round "3.35"]
[Result "1/2-1/2"]
[TimeControl "5400+30"]

1. e4 {[%clk 1:30:57]} 1... c5 {[%clk 1:30:57]} 2. Nf3 {[%clk 1:31:23]} 2... a6
{[%clk 1:31:08]} 3. c3 {[%clk 1:31:46]} 3... d5 {[%clk 1:31:33]} 4. e5 {[%clk
1:29:29]} 4... Nc6 {[%clk 1:25:59]} 5. d4 {[%clk 1:26:25]} 5... Bg4 {[%clk
1:24:38]} 6. Be2 {[%clk 1:25:14]} 6... e6 {[%clk 1:22:32]} 7. b3 {[%clk
1:19:34]} 7... Nge7 {[%clk 1:20:19]} 8. Bb2 {[%clk 1:12:00]} 8... Nf5 {[%clk
1:17:46]} 9. Nbd2 {[%clk 1:09:43]} 9... cxd4 {[%clk 1:15:52]} 10. Nxd4 {[%clk
1:06:47]} 10... Bxe2 {[%clk 1:09:27]} 11. Qxe2 {[%clk 1:07:06]} 11... Nfxd4
{[%clk 1:09:37]} 12. cxd4 {[%clk 1:07:29]} 12... Qb6 {[%clk 1:09:58]} 13. Nf3
{[%clk 1:05:34]} 13... Bb4+ {[%clk 1:10:05]} 14. Kf1 {[%clk 1:05:56]} 14... O-O
{[%clk 1:09:53]} 15. g3 {[%clk 1:05:06]} 15... f6 {[%clk 1:09:11]} 16. Kg2
{[%clk 0:56:01]} 16... Rad8 {[%clk 0:59:34]} 17. Rac1 {[%clk 0:44:59]} 17...
fxe5 {[%clk 0:31:37]} 18. Nxe5 {[%clk 0:44:45]} 18... Nxe5 {[%clk 0:31:03]} 19.
Qxe5 {[%clk 0:45:06]} 19... Rf5 {[%clk 0:31:15]} 20. Qc7 {[%clk 0:42:21]} 20...
Ba5 {[%clk 0:26:47]} 21. Qxb6 {[%clk 0:42:20]} 21... Bxb6 {[%clk 0:27:09]} 22.
Rhe1 {[%clk 0:39:05]} 22... Rdf8 {[%clk 0:25:01]} 23. Rc2 {[%clk 0:37:42]} 23...
Re8 {[%clk 0:23:41]} 24. Rd1 {[%clk 0:34:00]} 24... Kf7 {[%clk 0:22:53]} 25. h4
{[%clk 0:29:17]} 25... Ke7 {[%clk 0:22:27]} 26. Ba3+ {[%clk 0:28:43]} 26... Kd7
{[%clk 0:22:47]} 27. Bc5 {[%clk 0:29:08]} 27... Rc8 {[%clk 0:20:41]} 28. Rdc1
{[%clk 0:28:51]} 28... Bxc5 {[%clk 0:19:36]} 29. Rxc5 {[%clk 0:29:14]} 29...
Rxc5 {[%clk 0:20:05]} 30. Rxc5 {[%clk 0:29:43]} 30... Rf8 {[%clk 0:20:05]} 31.
f4 {[%clk 0:28:44]} 31... h6 {[%clk 0:19:50]} 32. Kh3 {[%clk 0:26:49]} 32... h5
{[%clk 0:19:26]} 33. Rc2 {[%clk 0:26:06]} 33... g6 {[%clk 0:19:28]} 34. Rf2
{[%clk 0:25:46]} 34... Rc8 {[%clk 0:19:36]} 35. Kg2 {[%clk 0:18:58]} 35... Rc1
{[%clk 0:19:39]} 36. Rf1 {[%clk 0:18:44]} 36... Rxf1 {[%clk 0:17:52]} 37. Kxf1
{[%clk 0:19:13]} 37... Ke7 {[%clk 0:18:15]} 38. Kf2 {[%clk 0:19:31]} 38... Kf6
{[%clk 0:18:43]} 39. Ke3 {[%clk 0:19:38]} 39... Kf5 {[%clk 0:17:30]} 40. Kf3
{[%clk 0:19:41]} 40... a5 {[%clk 0:17:56]} 41. a4 {[%clk 0:19:53]} 41... b6
{[%clk 0:18:21]} 42. Ke3 {[%clk 0:20:15]} 42... Kg4 {[%clk 0:18:38]} 43. Kf2
{[%clk 0:20:40]} 43... Kh3 {[%clk 0:19:03]} 44. Kf3 {[%clk 0:21:05]} 44... Kh2
45. Kf2 {[%clk 0:18:55]} 45... Kh3 {[%clk 0:19:27]} 1/2-1/2

[Variant "Standard"]
[Site "Europe Echecs"]

[Event "Championnat du monde jeunes U10"]
[Date "2024.11.17"]
[White "Aghoyan, Gevorg"]
[Black "Perez Solanas, Hugo"]
[WhiteElo "1682"]
[BlackElo "1824"]
[Round "3.36"]
[Result "0-1"]
[TimeControl "5400+30"]

1. e4 {[%clk 1:30:58]} 1... c5 {[%clk 1:30:53]} 2. Nf3 {[%clk 1:31:20]} 2... g6
{[%clk 1:31:14]} 3. c3 {[%clk 1:31:35]} 3... d5 {[%clk 1:31:27]} 4. exd5 {[%clk
1:31:40]} 4... Qxd5 {[%clk 1:31:39]} 5. d4 {[%clk 1:31:43]} 5... Bg7 {[%clk
1:31:31]} 6. Nbd2 {[%clk 1:31:33]} 6... cxd4 {[%clk 1:30:15]} 7. Bc4 {[%clk
1:30:37]} 7... Qa5 {[%clk 1:27:29]} 8. Nxd4 {[%clk 1:27:42]} 8... Nf6 {[%clk
1:23:05]} 9. O-O {[%clk 1:23:28]} 9... O-O {[%clk 1:21:38]} 10. Re1 {[%clk
1:19:40]} 10... Qc5 {[%clk 0:56:35]} 11. Qb3 {[%clk 1:10:05]} 11... e5 {[%clk
0:41:30]} 12. N4f3 {[%clk 1:08:16]} 12... Nc6 {[%clk 0:41:28]} 13. Qd1 {[%clk
0:58:36]} 13... e4 {[%clk 0:36:42]} 14. b4 {[%clk 0:58:03]} 14... Qf5 {[%clk
0:35:48]} 15. Nd4 {[%clk 0:55:50]} 15... Nxd4 {[%clk 0:36:04]} 16. cxd4 {[%clk
0:56:12]} 16... Bd7 {[%clk 0:33:53]} 17. h3 {[%clk 0:48:00]} 17... Bc6 {[%clk
0:32:16]} 18. Bb2 {[%clk 0:42:59]} 18... Rfe8 {[%clk 0:30:27]} 19. Nf1 {[%clk
0:37:12]} 19... Rad8 {[%clk 0:25:38]} 20. Ne3 {[%clk 0:35:56]} 20... Qd7 {[%clk
0:25:53]} 21. Qc2 {[%clk 0:32:46]} 21... Nd5 {[%clk 0:24:28]} 22. a3 {[%clk
0:25:20]} 22... h5 {[%clk 0:20:42]} 23. Rac1 {[%clk 0:19:23]} 23... a6 {[%clk
0:19:47]} 24. Bb3 {[%clk 0:17:35]} 24... Kh7 {[%clk 0:14:07]} 25. Bc4 {[%clk
0:13:57]} 25... f5 {[%clk 0:13:00]} 26. Bxd5 {[%clk 0:12:20]} 26... Bxd5 {[%clk
0:13:21]} 27. Qc5 {[%clk 0:12:06]} 27... Bf7 {[%clk 0:10:27]} 28. Red1 {[%clk
0:10:20]} 28... f4 {[%clk 0:10:23]} 29. Nc4 {[%clk 0:09:35]} 29... Rc8 {[%clk
0:05:28]} 30. Nb6 {[%clk 0:09:04]} 30... Rxc5 {[%clk 0:05:52]} 31. Nxd7 {[%clk
0:09:30]} 31... Rxc1 {[%clk 0:06:01]} 32. Rxc1 {[%clk 0:09:53]} 32... e3 {[%clk
0:04:45]} 33. Ne5 {[%clk 0:09:19]} 33... Bd5 {[%clk 0:04:18]} 34. f3 {[%clk
0:08:55]} 34... Re7 {[%clk 0:03:28]} 35. Rc5 {[%clk 0:07:33]} 35... Bb3 {[%clk
0:03:33]} 36. Kf1 {[%clk 0:07:16]} 36... Bf6 {[%clk 0:03:23]} 37. Ke2 {[%clk
0:07:03]} 37... Ba4 {[%clk 0:03:37]} 38. Rc3 {[%clk 0:06:21]} 38... Bb5+ {[%clk
0:03:56]} 39. Nd3 {[%clk 0:06:26]} 39... Bxd4 {[%clk 0:04:04]} 40. Rc2 {[%clk
0:06:47]} 40... Bxb2 {[%clk 0:04:28]} 41. Rxb2 {[%clk 0:06:59]} 41... Rd7 {[%clk
0:04:49]} 42. Rb3 {[%clk 0:07:09]} 42... Bc4 {[%clk 0:05:09]} 43. Rc3 {[%clk
0:07:32]} 43... b5 {[%clk 0:05:30]} 44. h4 {[%clk 0:07:50]} 44... Kg7 {[%clk
0:05:51]} 45. g3 {[%clk 0:07:49]} 45... fxg3 {[%clk 0:06:12]} 46. Kxe3 {[%clk
0:08:14]} 46... Rxd3+ {[%clk 0:06:33]} 47. Rxd3 {[%clk 0:08:31]} 47... Bxd3
{[%clk 0:06:56]} 48. f4 {[%clk 0:08:53]} 48... g2 {[%clk 0:07:13]} 49. Kf2
{[%clk 0:09:19]} 49... Be4 {[%clk 0:07:34]} 50. f5 {[%clk 0:09:32]} 50... gxf5
{[%clk 0:07:56]} 51. Kg1 {[%clk 0:09:44]} 51... Kf6 {[%clk 0:08:20]} 52. Kh2
{[%clk 0:10:08]} 52... Ke5 {[%clk 0:08:44]} 53. a4 {[%clk 0:10:33]} 53... bxa4
{[%clk 0:09:04]} 54. b5 {[%clk 0:11:00]} 54... axb5 {[%clk 0:09:24]} 55. Kg1
{[%clk 0:11:18]} 55... a3 56. Kh2 {[%clk 0:11:37]} 56... a2 {[%clk 0:10:11]} 57.
Kh3 {[%clk 0:12:03]} 57... a1=Q {[%clk 0:10:28]} 58. Kh2 {[%clk 0:12:25]} 58...
Qh1+ {[%clk 0:10:49]} 59. Kg3 {[%clk 0:12:50]} 59... g1=Q# {[%clk 0:11:06]} 0-1

[Variant "Standard"]
[Site "Europe Echecs"]

[Event "Championnat du monde jeunes U10"]
[Date "2024.11.17"]
[White "Della Penna, Leonardo"]
[Black "Buklaho, Ignacy"]
[WhiteElo "1675"]
[BlackElo "1822"]
[Round "3.37"]
[Result "1/2-1/2"]
[TimeControl "5400+30"]

1. e4 {[%clk 1:30:57]} 1... c6 {[%clk 1:30:47]} 2. Nc3 {[%clk 1:31:21]} 2... d5
{[%clk 1:30:59]} 3. Nf3 {[%clk 1:31:40]} 3... Bg4 {[%clk 1:31:10]} 4. h3 {[%clk
1:31:56]} 4... Bxf3 {[%clk 1:31:26]} 5. Qxf3 {[%clk 1:32:18]} 5... e6 {[%clk
1:31:38]} 6. d4 {[%clk 1:32:30]} 6... Nd7 {[%clk 1:30:59]} 7. Bd3 {[%clk
1:31:56]} 7... dxe4 {[%clk 1:30:17]} 8. Nxe4 {[%clk 1:31:50]} 8... Ngf6 {[%clk
1:29:36]} 9. c3 {[%clk 1:31:14]} 9... Nxe4 {[%clk 1:28:08]} 10. Bxe4 {[%clk
1:30:36]} 10... Nf6 {[%clk 1:27:23]} 11. O-O {[%clk 1:30:08]} 11... Nxe4 {[%clk
1:26:27]} 12. Qxe4 {[%clk 1:30:20]} 12... Bd6 {[%clk 1:26:35]} 13. Qg4 {[%clk
1:29:09]} 13... O-O {[%clk 1:25:01]} 14. Bf4 {[%clk 1:26:18]} 14... Bxf4 {[%clk
1:23:58]} 15. Qxf4 {[%clk 1:26:28]} 15... Qb6 {[%clk 1:24:06]} 16. Qg3 {[%clk
1:24:25]} 16... Rad8 {[%clk 1:22:53]} 17. Rfe1 {[%clk 1:19:21]} 17... Rd7 {[%clk
1:21:27]} 18. Re2 {[%clk 1:18:45]} 18... Rfd8 {[%clk 1:21:16]} 19. Rae1 {[%clk
1:17:08]} 19... h6 {[%clk 1:18:41]} 20. Qg4 {[%clk 1:14:47]} 20... c5 {[%clk
1:17:01]} 21. dxc5 {[%clk 1:12:17]} 21... Qxc5 {[%clk 1:17:21]} 22. Qf4 {[%clk
1:10:42]} 22... Qb5 {[%clk 1:14:57]} 23. Qc1 {[%clk 1:09:15]} 23... Rd3 {[%clk
1:13:25]} 24. c4 {[%clk 1:06:10]} 24... Qa5 {[%clk 1:10:30]} 25. b3 {[%clk
1:05:43]} 25... Qf5 {[%clk 1:00:23]} 26. Re3 {[%clk 1:05:04]} 26... Rd2 {[%clk
0:49:58]} 27. R3e2 {[%clk 1:00:11]} 27... R2d4 {[%clk 0:45:30]} 28. Qc2 {[%clk
0:57:24]} 28... Qa5 {[%clk 0:41:52]} 29. Qc1 {[%clk 0:46:28]} 29... Rd2 {[%clk
0:39:59]} 30. a3 {[%clk 0:46:00]} 30... R2d3 {[%clk 0:38:07]} 31. Re3 {[%clk
0:45:40]} 31... Qb6 {[%clk 0:32:54]} 32. b4 {[%clk 0:45:16]} 32... Qd4 {[%clk
0:29:07]} 33. c5 {[%clk 0:43:06]} 33... Rd2 {[%clk 0:25:41]} 34. Qc3 {[%clk
0:42:09]} 34... Qd5 {[%clk 0:17:43]} 35. Rg3 {[%clk 0:39:14]} 35... Rd4 {[%clk
0:13:09]} 36. Rge3 {[%clk 0:36:45]} 36... a6 {[%clk 0:11:54]} 37. Re5 {[%clk
0:35:27]} 37... Qc6 {[%clk 0:11:05]} 38. R5e3 {[%clk 0:34:43]} 38... Qb5 {[%clk
0:04:03]} 39. Rg3 {[%clk 0:34:14]} 39... Qc4 {[%clk 0:03:41]} 40. Qxc4 {[%clk
0:33:32]} 40... Rxc4 {[%clk 0:04:03]} 41. Ree3 {[%clk 0:32:54]} 41... Rd1+
{[%clk 0:02:37]} 42. Kh2 {[%clk 0:33:07]} 42... Rd2 {[%clk 0:02:49]} 43. Rgf3
{[%clk 0:33:21]} 43... a5 {[%clk 0:02:07]} 44. bxa5 {[%clk 0:31:20]} 44... Rxc5
{[%clk 0:02:27]} 45. Rb3 {[%clk 0:30:25]} 45... Rd7 {[%clk 0:02:26]} 46. Rfc3
{[%clk 0:29:50]} 46... Rxa5 {[%clk 0:02:35]} 47. Rc8+ {[%clk 0:30:08]} 47... Kh7
{[%clk 0:02:50]} 48. Rb8 {[%clk 0:30:32]} 48... f6 {[%clk 0:02:44]} 49. g4
{[%clk 0:29:19]} 49... Ra4 {[%clk 0:02:29]} 50. Kg3 {[%clk 0:29:21]} 50... e5
{[%clk 0:01:46]} 51. h4 {[%clk 0:29:22]} 51... Rad4 {[%clk 0:01:08]} 52. f3
{[%clk 0:28:56]} 52... Ra4 {[%clk 0:00:54]} 53. h5 {[%clk 0:29:11]} 53... Rad4
{[%clk 0:00:53]} 1/2-1/2

[Variant "Standard"]
[Site "Europe Echecs"]

[Event "Championnat du monde jeunes U10"]
[Date "2024.11.17"]
[White "Dayal, Samar"]
[Black "Megagiannis, Maximos"]
[WhiteElo "1818"]
[BlackElo "1682"]
[Round "3.38"]
[Result "1-0"]
[TimeControl "5400+30"]

1. e4 {[%clk 1:30:59]} 1... c6 {[%clk 1:30:51]} 2. d4 {[%clk 1:29:16]} 2... d5
{[%clk 1:31:15]} 3. exd5 {[%clk 1:29:44]} 3... cxd5 {[%clk 1:31:32]} 4. c4
{[%clk 1:30:13]} 4... Nf6 5. Nc3 {[%clk 1:30:36]} 5... Nc6 {[%clk 1:32:12]} 6.
Nf3 {[%clk 1:31:04]} 6... a6 {[%clk 1:32:33]} 7. h3 {[%clk 1:10:58]} 7... g6
{[%clk 1:25:30]} 8. cxd5 {[%clk 1:06:03]} 8... Nxd5 {[%clk 1:25:48]} 9. Bc4
{[%clk 1:05:57]} 9... Be6 {[%clk 1:23:31]} 10. Be2 {[%clk 0:55:11]} 10... Bg7
{[%clk 1:22:38]} 11. O-O {[%clk 0:53:20]} 11... O-O {[%clk 1:21:37]} 12. Be3
{[%clk 0:52:18]} 12... Nxc3 {[%clk 1:10:34]} 13. bxc3 {[%clk 0:52:45]} 13... Qa5
{[%clk 1:09:48]} 14. c4 {[%clk 0:42:47]} 14... Bf5 {[%clk 1:00:53]} 15. Qb3
{[%clk 0:36:12]} 15... Qc7 {[%clk 0:53:10]} 16. Rac1 {[%clk 0:28:55]} 16... Rfd8
{[%clk 0:48:12]} 17. d5 {[%clk 0:28:53]} 17... Ne5 {[%clk 0:47:38]} 18. Bb6
{[%clk 0:28:55]} 18... Nxf3+ {[%clk 0:41:58]} 19. Bxf3 {[%clk 0:29:23]} 19...
Qf4 {[%clk 0:40:40]} 20. Bxd8 {[%clk 0:29:14]} 20... Rxd8 {[%clk 0:40:16]} 21.
Qe3 {[%clk 0:27:54]} 21... Qh4 {[%clk 0:38:30]} 22. g3 {[%clk 0:25:14]} 22...
Qxh3 {[%clk 0:36:30]} 23. Qxe7 {[%clk 0:25:40]} 23... Rd7 {[%clk 0:35:16]} 24.
Qe8+ {[%clk 0:22:30]} 24... Bf8 {[%clk 0:35:08]} 25. c5 {[%clk 0:22:59]} 25...
h5 {[%clk 0:34:05]} 26. Rc4 {[%clk 0:21:51]} 26... Bd3 {[%clk 0:32:49]} 27. Bg2
{[%clk 0:22:20]} 27... Re7 {[%clk 0:28:58]} 28. Qxe7 {[%clk 0:21:49]} 28...
Qxg2+ {[%clk 0:28:53]} 29. Kxg2 {[%clk 0:22:17]} 29... Bxf1+ {[%clk 0:28:23]}
30. Kxf1 {[%clk 0:22:46]} 30... Bxe7 {[%clk 0:28:36]} 31. d6 {[%clk 0:22:55]}
31... Bd8 {[%clk 0:27:29]} 32. Rb4 {[%clk 0:23:24]} 1-0

[Variant "Standard"]
[Site "Europe Echecs"]

[Event "Championnat du monde jeunes U10"]
[Date "2024.11.17"]
[White "Mariani, Kim Paul"]
[Black "Golya, David"]
[WhiteElo "1814"]
[BlackElo "1672"]
[Round "3.39"]
[Result "0-1"]
[TimeControl "5400+30"]

1. d4 {[%clk 1:30:30]} 1... d5 {[%clk 1:30:53]} 2. c4 {[%clk 1:30:24]} 2... c6
{[%clk 1:31:18]} 3. Nc3 {[%clk 1:30:31]} 3... Nf6 {[%clk 1:31:38]} 4. Nf3 {[%clk
1:30:31]} 4... dxc4 {[%clk 1:31:27]} 5. a4 {[%clk 1:30:36]} 5... Bf5 {[%clk
1:31:47]} 6. e3 {[%clk 1:29:59]} 6... Nbd7 {[%clk 1:30:50]} 7. Bxc4 {[%clk
1:29:29]} 7... e6 {[%clk 1:30:58]} 8. O-O {[%clk 1:29:18]} 8... Be7 {[%clk
1:30:59]} 9. Re1 {[%clk 1:29:09]} 9... O-O {[%clk 1:30:13]} 10. h3 {[%clk
1:21:13]} 10... Nb6 {[%clk 1:22:55]} 11. Bd3 {[%clk 1:14:11]} 11... c5 {[%clk
1:19:20]} 12. Bxf5 {[%clk 0:30:37]} 12... exf5 {[%clk 1:18:48]} 13. Qb3 {[%clk
0:30:03]} 13... Rb8 {[%clk 1:01:39]} 14. Bd2 {[%clk 0:19:16]} 14... Nfd5 {[%clk
0:47:05]} 15. a5 {[%clk 0:12:39]} 15... c4 {[%clk 0:25:46]} 16. Qc2 {[%clk
0:10:56]} 16... Nb4 {[%clk 0:23:16]} 17. Qxf5 {[%clk 0:11:11]} 17... Nc8 {[%clk
0:22:47]} 18. Red1 {[%clk 0:07:25]} 18... g6 {[%clk 0:17:26]} 19. Qg4 {[%clk
0:05:59]} 19... Nd6 {[%clk 0:14:53]} 20. Ne5 {[%clk 0:04:38]} 20... f5 {[%clk
0:12:47]} 21. Qe2 {[%clk 0:02:50]} 21... Rc8 {[%clk 0:11:45]} 22. Na4 {[%clk
0:02:29]} 22... Qxa5 {[%clk 0:10:29]} 23. Nc5 {[%clk 0:02:44]} 23... Qb5 {[%clk
0:10:18]} 24. Rxa7 {[%clk 0:02:58]} 24... Nc6 {[%clk 0:09:13]} 25. Nxc6 {[%clk
0:03:13]} 25... Qxc6 {[%clk 0:09:13]} 26. Rda1 {[%clk 0:02:45]} 26... Nb5 {[%clk
0:08:58]} 27. Qxc4+ {[%clk 0:02:57]} 27... Rf7 {[%clk 0:08:14]} 28. Bb4 {[%clk
0:02:06]} 28... Nxa7 {[%clk 0:07:36]} 29. Rxa7 {[%clk 0:02:12]} 29... Rc7 {[%clk
0:06:45]} 30. Ra8+ {[%clk 0:01:22]} 30... Bf8 {[%clk 0:06:24]} 31. d5 {[%clk
0:01:00]} 31... b5 {[%clk 0:04:44]} 32. Qd4 {[%clk 0:00:37]} 32... Qxa8 {[%clk
0:05:02]} 33. d6 {[%clk 0:00:47]} 33... Rc6 {[%clk 0:04:41]} 34. d7 {[%clk
0:00:36]} 34... Rd6 {[%clk 0:04:33]} 35. Qe5 {[%clk 0:00:31]} 35... Rd1+ {[%clk
0:04:45]} 0-1

[Variant "Standard"]
[Site "Europe Echecs"]